bitfinex-derivatives/quotes_SOLF0:USTF0_20250501
["timestamp","ask_amount","ask_price","bid_price","bid_amount"]
[1746095923526,6.5899,151.74,151.71,6.591]
[1746095923725,2.0803,151.76,151.71,6.591]
[1746095923926,2.0803,151.76,151.69,29.42]
[1746095925030,6.5903,151.74,151.7,6.5914]
[1746095925523,6.5903,151.73,151.7,6.5914]
[1746095926029,6.5903,151.73,151.69,36.0118]
[1746095926332,6.59,151.74,151.69,29.42]
[1746095926627,2.0803,151.76,151.69,36.0118]
[1746095926828,6.5905,151.73,151.69,29.42]
[1746095927029,2.0803,151.76,151.69,29.42]
[1746095927421,6.5906,151.73,151.69,29.42]
[1746095928023,6.5908,151.72,151.69,29.42]
[1746095928220,39.11991319,151.76,151.69,29.42]
[1746095928427,39.11991319,151.76,151.67,6.5925]
[1746095928723,39.11991319,151.76,151.67,6.5928]
[1746095929031,6.5918,151.7,151.67,6.5928]
[1746095929422,39.11991319,151.76,151.66,6.593]
[1746095929726,6.5919,151.7,151.65,29.22]
[1746095930031,31.3003,151.76,151.65,29.22]
[1746095930222,39.11991319,151.76,151.65,29.22]
[1746095930422,6.5914,151.71,151.65,29.22]
[1746095930619,39.11991319,151.76,151.67,6.5926]
[1746095931925,39.11991319,151.76,151.68,6.5924]
[1746095932133,6.5921,151.69,151.65,29.22]
[1746095932431,39.11991319,151.76,151.68,6.5924]
[1746095932624,6.5914,151.71,151.68,6.5924]
[1746095932825,39.11991319,151.76,151.65,29.22]
[1746095933631,39.11991319,151.76,151.67,6.5928]
[1746095934331,6.5916,151.7,151.67,6.5928]
[1746095934528,39.11991319,151.76,151.67,6.5928]
[1746095934734,39.11991319,151.76,151.68,6.5924]
[1746095935031,6.5917,151.7,151.68,6.5924]
[1746095935433,6.5917,151.7,151.67,6.5927]
[1746095935932,6.5913,151.71,151.68,6.5923]
[1746095936836,6.5913,151.71,151.67,6.5927]
[1746095937023,39.11991319,151.76,151.65,37.03961319]
[1746095937535,6.5914,151.71,151.67,6.5927]
[1746095939335,6.5909,151.72,151.65,37.03961319]
[1746095939736,39.11991319,151.76,151.65,37.03961319]
[1746095940031,6.5912,151.71,151.67,6.5926]
[1746095940234,39.11991319,151.76,151.67,6.5926]
[1746095940631,39.11991319,151.76,151.66,6.5931]
[1746095940823,39.11991319,151.76,151.65,37.03961319]
[1746095941234,31.3003,151.76,151.65,37.03961319]
[1746095941634,6.5909,151.72,151.68,6.5923]
[1746095942338,31.3003,151.76,151.67,6.5928]
[1746095942935,6.5915,151.71,151.67,6.5928]
[1746095945335,6.5918,151.7,151.65,37.03961319]
[1746095945637,6.5918,151.7,151.66,6.5929]
[1746095946036,6.5921,151.69,151.66,6.5929]
[1746095946333,39.11991319,151.76,151.66,6.5929]
[1746095946530,39.11991319,151.76,151.65,29.22]
[1746095946928,39.11991319,151.76,151.66,6.5931]
[1746095947133,39.11991319,151.76,151.65,29.22]
[1746095947437,39.11991319,151.76,151.67,6.5928]
[1746095947639,6.5915,151.71,151.67,6.5928]
[1746095947937,39.11991319,151.76,151.67,6.5928]
[1746095948237,39.11991319,151.76,151.68,6.5924]
[1746095949137,39.11991319,151.76,151.65,29.22]
[1746095949537,39.11991319,151.76,151.68,6.5921]
[1746095949739,39.11991319,151.76,151.65,29.22]
[1746095950033,6.5904,151.73,151.7,6.5914]
[1746095951135,6.5907,151.72,151.7,6.5914]
[1746095951533,6.5907,151.72,151.69,6.5919]
[1746095952237,6.5907,151.72,151.68,6.5923]
[1746095952537,6.5911,151.71,151.68,6.5923]
[1746095953039,6.5911,151.71,151.67,6.5927]
[1746095953635,6.5911,151.71,151.65,29.22]
[1746095954239,6.5911,151.71,151.67,6.5926]
[1746095954943,6.5916,151.7,151.66,6.5931]
[1746095956539,31.3003,151.76,151.65,29.22]
[1746095957227,6.5908,151.72,151.68,6.5922]
[1746095957432,288.52736403,151.8,151.69,36.83961319]
[1746095957629,6.5875,151.8,151.72,7.81961319]
[1746095957834,6.5875,151.8,151.73,29.02]
[1746095958234,6.5875,151.8,151.75,6.5891]
[1746095958646,6.5875,151.8,151.73,29.02]
[1746095958939,6.5877,151.79,151.73,29.02]
[1746095959444,4.0275,151.82,151.73,29.02]
[1746095959742,33.0475,151.82,151.73,29.02]
[1746095960643,6.5876,151.8,151.75,6.5891]
[1746095960944,33.0475,151.82,151.73,29.02]
[1746095961145,6.588,151.79,151.74,6.5897]
[1746095961645,33.0475,151.82,151.74,6.5897]
[1746095961846,6.5879,151.79,151.74,6.5897]
[1746095962141,33.0475,151.82,151.74,6.5897]
[1746095962346,33.0475,151.82,151.73,29.02]
[1746095962742,33.0475,151.82,151.73,35.61]
[1746095962939,33.0475,151.82,151.73,29.02]
[1746095963448,6.5878,151.79,151.75,6.5891]
[1746095963846,33.0475,151.82,151.75,6.5891]
[1746095964249,33.0475,151.82,151.76,6.5889]
[1746095965150,6.5876,151.8,151.76,6.5889]
[1746095965347,33.0475,151.82,151.73,29.02]
[1746095966251,6.588,151.79,151.76,6.589]
[1746095966650,33.0475,151.82,151.75,6.5894]
[1746095967047,33.0475,151.82,151.73,29.02]
[1746095968547,6.5888,151.77,151.74,6.5898]
[1746095968950,6.589,151.76,151.74,6.5898]
[1746095969151,6.589,151.76,151.73,35.6102]
[1746095969451,33.0475,151.82,151.73,29.02]
[1746095970561,6.5893,151.76,151.73,35.6101]
[1746095970862,29.0,151.75,151.68,7.81961319]
[1746095971061,7.81961319,151.76,151.69,29.0]
[1746095971260,6.5916,151.7,151.69,29.0]
[1746095973557,3.8922,151.74,151.69,29.0]
[1746095973762,3.8922,151.74,151.69,35.5918]
[1746095973961,3.8922,151.74,151.69,29.0]
[1746095974861,6.5906,151.73,151.69,35.5917]
[1746095976563,3.8922,151.74,151.69,29.0]
[1746095976962,6.5914,151.71,151.69,29.0]
[1746095977161,3.8922,151.74,151.69,29.0]
[1746095977564,6.5916,151.7,151.69,29.0]
[1746095977954,6.5921,151.69,151.66,528.79467]
[1746095978156,3.8922,151.74,151.66,522.20167]
[1746095978355,3.8922,151.74,151.67,29.02]
[1746095978556,3.8922,151.74,151.68,29.02]
[1746095979363,6.5916,151.7,151.67,6.5925]
[1746095979555,3.8922,151.74,151.66,528.79487]
[1746095979756,3.8922,151.74,151.67,29.02]
[1746095980051,6.5918,151.7,151.67,35.6126]
[1746095980765,6.5918,151.7,151.68,29.02]
[1746095981264,6.5913,151.71,151.68,35.6124]
[1746095981768,6.5909,151.72,151.68,35.6124]
[1746095982062,3.8922,151.74,151.68,29.02]
[1746095982263,6.591,151.72,151.68,29.02]
[1746095982462,6.591,151.72,151.68,35.6121]
[1746095982663,6.591,151.72,151.68,29.02]
[1746095983065,6.591,151.72,151.68,35.6122]
[1746095984064,3.8922,151.74,151.66,522.20167]
[1746095984264,7.81961319,151.73,151.67,29.02]
[1746095984768,6.5924,151.68,151.67,29.02]
[1746095985261,6.5922,151.69,151.67,29.02]
[1746095985461,7.81961319,151.73,151.67,29.02]
[1746095985867,6.5924,151.69,151.66,0.28167]
[1746095986165,6.5924,151.69,151.68,29.02]
[1746095987064,1.9688,151.74,151.68,29.02]
[1746095987456,6.5914,151.71,151.68,29.02]
[1746095987763,6.5914,151.71,151.68,35.6124]
[1746095988068,1.9688,151.74,151.68,29.02]
[1746095988267,3.9149,151.74,151.68,29.02]
[1746095988769,6.5919,151.7,151.68,29.02]
[1746095989570,6.5913,151.71,151.68,29.02]
[1746095989768,3.9149,151.74,151.69,6.5918]
[1746095989962,3.9149,151.74,151.68,29.02]
[1746095990163,6.5904,151.73,151.68,29.02]
[1746095991472,8.5588,151.74,151.7,6.5912]
[1746095991662,1.9688,151.74,151.7,6.5912]
[1746095992272,6.5913,151.71,151.65,522.04]
[1746095992471,6.5913,151.71,151.66,28.86]
[1746095992870,6.5909,151.72,151.68,6.5924]
[1746095993267,6.5909,151.72,151.69,28.86]
[1746095993473,6.5909,151.72,151.7,28.86]
[1746095994081,6.5912,151.71,151.67,6.5926]
[1746095994266,6.5912,151.71,151.68,28.84]
[1746095994572,9.78841319,151.74,151.69,28.84]
[1746095994774,11.84981319,151.74,151.69,28.84]
[1746095995078,6.5916,151.7,151.69,28.84]
[1746095998275,6.5914,151.71,151.69,28.84]
[1746095998778,11.84981319,151.74,151.69,28.84]
[1746095999073,6.591,151.72,151.69,28.84]
[1746095999275,11.84981319,151.74,151.69,28.84]
[1746095999478,11.84981319,151.74,151.7,28.86]
[1746095999671,6.5912,151.71,151.7,28.86]
[1746095999873,11.84981319,151.74,151.66,6.5931]
[1746096000076,11.84981319,151.74,151.67,28.86]
[1746096000276,6.5918,151.7,151.67,28.86]
[1746096000472,6.5918,151.7,151.67,35.4526]
[1746096000776,6.5918,151.7,151.67,28.86]
[1746096001276,11.84981319,151.74,151.62,1.1861]
[1746096001479,7.81961319,151.68,151.63,28.86]
[1746096001877,6.5941,151.65,151.63,28.86]
[1746096002079,7.81961319,151.68,151.63,28.86]
[1746096002972,6.5936,151.66,151.63,28.86]
[1746096003979,6.5936,151.66,151.63,35.4545]
[1746096004882,6.5936,151.66,151.63,28.86]
[1746096005181,6.5938,151.65,151.63,28.86]
[1746096005481,7.81961319,151.68,151.63,35.4545]
[1746096006473,6.5935,151.66,151.63,35.4545]
[1746096006780,6.5935,151.66,151.64,6.5941]
[1746096006973,6.5935,151.66,151.63,28.86]
[1746096007279,6.5938,151.65,151.63,35.4544]
[1746096007784,7.81961319,151.68,151.63,35.4544]
[1746096008481,6.5935,151.66,151.63,35.4544]
[1746096009179,7.81961319,151.68,151.63,28.86]
[1746096009677,6.5931,151.67,151.63,28.86]
[1746096010070,6.5935,151.66,151.6,0.30868]
[1746096010274,6.5935,151.66,151.61,28.86]
[1746096010575,7.81961319,151.68,151.61,28.86]
[1746096010880,7.81961319,151.68,151.62,28.86]
[1746096011885,6.5935,151.66,151.62,35.4548]
[1746096012486,6.593,151.67,151.63,6.5943]
[1746096012678,6.593,151.67,151.62,28.86]
[1746096013085,6.5934,151.66,151.63,6.5944]
[1746096013381,7.81961319,151.68,151.63,6.5944]
[1746096013583,6.5937,151.66,151.62,35.4549]
[1746096014379,6.5937,151.66,151.63,6.5945]
[1746096014780,6.5931,151.67,151.63,6.5945]
[1746096014986,6.5931,151.67,151.64,6.5942]
[1746096015187,6.5931,151.67,151.65,28.86]
[1746096015484,6.5925,151.68,151.65,35.4537]
[1746096016587,7.81961319,151.71,151.66,6.5932]
[1746096016885,11.84981319,151.74,151.65,28.86]
[1746096017590,6.5914,151.71,151.67,6.5925]
[1746096018882,6.5904,151.73,151.66,522.2]
[1746096019084,1.9688,151.74,151.66,522.2]
[1746096019390,6.59,151.74,151.7,6.5912]
[1746096019582,6.59,151.74,151.71,28.72]
[1746096019889,6.59,151.74,151.71,35.311]
[1746096020389,7.81961319,151.77,151.71,28.72]
[1746096020776,6.5905,151.73,151.71,28.72]
[1746096021087,6.5905,151.73,151.72,28.7]
[1746096022088,6.5905,151.73,151.69,6.5917]
[1746096022285,6.5905,151.73,151.72,28.7]
[1746096022685,7.81961319,151.77,151.72,28.7]
[1746096024189,7.81961319,151.74,151.71,28.7]
[1746096024588,6.5905,151.73,151.71,28.7]
[1746096024985,7.81961319,151.77,151.71,28.7]
[1746096025987,7.81961319,151.74,151.7,28.7]
[1746096026190,6.5914,151.71,151.7,28.7]
[1746096026387,7.81961319,151.74,151.7,28.7]
[1746096027294,6.5908,151.72,151.7,28.7]
[1746096027690,7.81961319,151.74,151.7,28.7]
[1746096027989,6.5905,151.73,151.7,35.2913]
[1746096028792,6.5905,151.73,151.71,6.591]
[1746096029096,6.5905,151.73,151.7,28.7]
[1746096029286,6.5907,151.72,151.7,35.2914]
[1746096029483,7.81961319,151.77,151.7,28.7]
[1746096029793,6.5907,151.72,151.7,28.7]
[1746096031195,6.5907,151.72,151.7,35.2915]
[1746096031494,6.5905,151.73,151.7,35.2915]
[1746096033297,6.5905,151.73,151.7,28.7]
[1746096034395,6.5909,151.72,151.7,28.7]
[1746096034697,7.81961319,151.77,151.7,28.7]
[1746096035000,6.5904,151.73,151.7,28.7]
[1746096036402,6.5904,151.73,151.7,35.2914]
[1746096036700,6.5894,151.75,151.7,28.7]
[1746096037005,6.5894,151.75,151.71,6.5909]
[1746096037393,6.5894,151.75,151.7,28.7]
[1746096037701,6.5894,151.75,151.72,6.5905]
[1746096038502,4.0291,151.79,151.73,6.5902]
[1746096038693,4.0291,151.79,151.74,28.7]
[1746096039200,6.5894,151.75,151.74,28.7]
[1746096044005,6.5892,151.76,151.74,28.7]
[1746096044211,11.84871319,151.79,151.74,28.7]
[1746096044405,4.0291,151.79,151.74,28.7]
[1746096044606,6.5894,151.76,151.74,28.7]
[1746096044808,11.84871319,151.79,151.74,28.7]
[1746096045206,6.5894,151.75,151.74,28.7]
[1746096045907,7.81961319,151.75,151.67,0.28964]
[1746096046112,7.81961319,151.75,151.67,35.58234]
[1746096046304,2.0583,151.74,151.67,28.98964]
[1746096046606,2.0583,151.74,151.67,35.58234]
[1746096046908,6.5919,151.7,151.67,35.58234]
[1746096047407,6.5919,151.7,151.68,6.5924]
[1746096047809,6.5919,151.7,151.67,28.98964]
[1746096048111,6.5913,151.71,151.67,28.98964]
[1746096048302,2.0583,151.74,151.67,28.98964]
[1746096048809,6.5918,151.7,151.67,35.58234]
[1746096050510,6.5913,151.71,151.68,6.5924]
[1746096050711,7.81961319,151.76,151.67,28.98964]
[1746096052116,7.81961319,151.76,151.69,6.5917]
[1746096052711,6.5903,151.73,151.69,6.5917]
[1746096053314,6.5903,151.73,151.7,6.5915]
[1746096053614,6.59,151.74,151.71,28.56]
[1746096054011,6.59,151.74,151.71,35.1511]
[1746096054211,6.59,151.74,151.71,28.56]
[1746096055717,6.59,151.74,151.71,35.1511]
[1746096057126,6.5903,151.73,151.71,35.1511]
[1746096057926,7.81961319,151.76,151.71,28.56]
[1746096059619,7.81961319,151.76,151.67,0.28964]
[1746096059827,7.81961319,151.76,151.69,28.56]
[1746096060828,7.81961319,151.76,151.67,0.28964]
[1746096061027,7.81961319,151.76,151.68,28.56]
[1746096061231,7.81961319,151.76,151.68,35.1523]
[1746096061528,7.81961319,151.76,151.68,6.5923]
[1746096061728,6.5914,151.71,151.69,28.56]
[1746096063227,6.5916,151.7,151.69,28.56]
[1746096064331,6.5914,151.71,151.69,28.56]
[1746096066831,13.179,151.75,151.67,0.28964]
[1746096067030,7.81961319,151.73,151.67,0.28964]
[1746096067330,6.5924,151.68,151.67,0.28964]
[1746096074028,6.5924,151.68,151.66,28.56]
[1746096074734,6.5929,151.67,151.66,28.56]
[1746096075128,6.5929,151.67,151.65,28.56]
[1746096076236,6.5929,151.67,151.64,6.594]
[1746096076432,6.5929,151.67,151.65,28.56]
[1746096077032,6.5929,151.67,151.64,6.594]
[1746096077238,6.5929,151.67,151.65,28.56]
[1746096077630,6.5933,151.66,151.65,28.56]
[1746096080239,6.5939,151.65,151.6,0.30855]
[1746096080438,6.5939,151.65,151.61,28.4]
[1746096080637,6.5939,151.65,151.62,6.5948]
[1746096081034,6.5942,151.64,151.61,34.9953]
[1746096082635,6.594,151.65,151.62,6.595]
[1746096082836,2.0253,151.69,151.61,28.4]
[1746096083443,6.5941,151.65,151.61,34.9952]
[1746096083640,6.5941,151.65,151.61,28.4]
[1746096084540,6.5941,151.65,151.62,6.5948]
[1746096085450,6.5935,151.66,151.62,6.5948]
[1746096085639,2.0253,151.69,151.62,6.5948]
[1746096086340,2.0253,151.69,151.61,34.9953]
[1746096086745,6.594,151.65,151.61,34.9953]
[1746096087347,6.5945,151.64,151.61,34.9953]
[1746096087641,2.0253,151.69,151.6,0.30855]
[1746096087848,2.0253,151.69,151.6,28.72855]
[1746096088443,6.5946,151.64,151.61,6.5955]
[1746096089844,6.5947,151.63,151.6,35.32435]
[1746096090350,2.0253,151.69,151.6,35.32435]
[1746096090542,6.5944,151.64,151.61,6.5954]
[1746096091049,6.594,151.65,151.62,6.5949]
[1746096091451,2.0253,151.69,151.6,28.72855]
[1746096091751,6.5945,151.64,151.61,6.5953]
[1746096092053,6.5945,151.64,151.6,28.72855]
[1746096092347,2.0253,151.69,151.6,28.72855]
[1746096092547,6.594,151.65,151.62,6.5951]
[1746096092853,2.0253,151.69,151.62,6.5951]
[1746096093147,2.0253,151.69,151.6,28.72855]
[1746096093354,6.5946,151.63,151.61,6.5954]
[1746096093542,7.81961319,151.67,151.6,0.30855]
[1746096093748,6.5951,151.62,151.6,6.90445]
[1746096094059,6.5951,151.62,151.6,0.30855]
[1746096094656,6.5951,151.62,151.6,6.90425]
[1746096095162,6.5948,151.63,151.6,6.90425]
[1746096095360,6.5948,151.63,151.61,6.5955]
[1746096095658,4.1373,151.66,151.6,0.30855]
[1746096096058,2.0444,151.66,151.6,0.30855]
[1746096096258,6.5931,151.67,151.64,6.594]
[1746096096446,2.0253,151.69,151.64,6.594]
[1746096096651,4.0934,151.71,151.63,28.42]
[1746096097660,10.6848,151.71,151.67,6.5926]
[1746096097963,1.9088,151.74,151.67,28.42]
[1746096098359,6.5901,151.74,151.67,28.42]
[1746096098762,6.5901,151.74,151.7,6.5913]
[1746096099362,38.14841319,151.78,151.67,28.42]
[1746096099662,9.72841319,151.78,151.68,28.42]
[1746096100366,6.5892,151.76,151.68,28.42]
[1746096100967,6.5892,151.76,151.72,6.5904]
[1746096101266,6.5892,151.76,151.72,35.0104]
[1746096102763,6.5888,151.77,151.72,28.42]
[1746096102968,6.5888,151.77,151.73,6.5901]
[1746096104172,6.5883,151.78,151.74,6.5896]
[1746096104565,4.0207,151.79,151.72,28.42]
[1746096105873,6.5888,151.77,151.73,6.5902]
[1746096107873,6.589,151.76,151.73,6.5902]
[1746096108475,6.5887,151.77,151.73,6.5902]
[1746096109377,10.6086,151.79,151.75,6.5894]
[1746096109875,10.6086,151.79,151.72,28.42]
[1746096110480,4.0207,151.79,151.72,28.42]
[1746096110671,4.0207,151.79,151.75,6.5891]
[1746096110976,10.6086,151.79,151.75,6.5891]
[1746096111677,4.0207,151.79,151.72,28.42]
[1746096112176,6.5888,151.77,151.73,6.5899]
[1746096113180,6.589,151.76,151.73,6.5899]
[1746096113877,6.5896,151.75,151.72,28.42]
[1746096114079,4.0207,151.79,151.68,522.18]
[1746096114271,7.81961319,151.77,151.69,28.22]
[1746096114675,6.5896,151.75,151.71,6.5909]
[1746096115173,6.5896,151.75,151.69,28.22]
[1746096115377,4.0207,151.79,151.69,28.22]
[1746096115877,7.81961319,151.77,151.69,28.22]
[1746096116876,7.81961319,151.77,151.71,6.5911]
[1746096119180,6.5897,151.75,151.72,6.5906]
[1746096119478,7.81961319,151.77,151.69,28.22]
[1746096119681,6.5888,151.77,151.69,28.22]
[1746096119880,4.0207,151.79,151.69,28.22]
[1746096120378,11.84031319,151.79,151.69,28.22]
[1746096121086,6.5902,151.74,151.7,6.5913]
[1746096121382,11.84031319,151.79,151.7,6.5913]
[1746096121583,6.5905,151.73,151.7,6.5913]
[1746096121785,7.81961319,151.76,151.68,522.18]
[1746096121979,7.81961319,151.76,151.68,550.4]
[1746096121980,2.0236,151.75,151.68,550.4]
[1746096122283,6.591,151.72,151.68,550.4]
[1746096122479,6.591,151.72,151.69,6.5917]
[1746096123290,6.591,151.72,151.68,550.4]
[1746096123886,6.591,151.72,151.69,6.5917]
[1746096125076,6.591,151.72,151.68,556.9922]
[1746096125275,6.591,151.72,151.68,34.8122]
[1746096125485,6.591,151.72,151.68,28.22]
[1746096125786,6.5912,151.71,151.68,28.22]
[1746096126290,6.5912,151.71,151.68,34.8122]
[1746096126689,6.5909,151.72,151.68,34.8122]
[1746096127590,9.84321319,151.75,151.68,34.8122]
[1746096127890,9.84321319,151.75,151.68,28.22]
[1746096128191,6.5917,151.7,151.68,28.22]
[1746096128494,9.84321319,151.75,151.68,34.8124]
[1746096128889,6.5912,151.71,151.68,34.8124]
[1746096129292,9.84321319,151.75,151.69,6.592]
[1746096129492,6.591,151.72,151.69,6.592]
[1746096131183,6.591,151.72,151.68,34.8122]
[1746096131588,9.84321319,151.75,151.65,0.29099]
[1746096131894,7.81961319,151.72,151.66,28.24]
[1746096132086,6.5929,151.68,151.66,28.24]
[1746096132387,4.0413,151.71,151.65,0.29099]
[1746096132893,6.5933,151.66,151.65,0.29099]
[1746096133488,4.0413,151.71,151.65,0.29099]
[1746096133893,6.5931,151.67,151.65,0.29099]
[1746096134393,6.5931,151.67,151.65,6.88469]
[1746096134687,6.5931,151.67,151.65,0.29099]
[1746096135099,6.5933,151.66,151.65,0.29099]
[1746096135290,4.0413,151.71,151.65,0.29099]
[1746096135595,6.5931,151.67,151.65,0.29099]
[1746096135802,4.0413,151.71,151.65,0.29099]
[1746096136299,6.5931,151.67,151.65,0.29099]
[1746096136794,6.5933,151.66,151.65,0.29099]
[1746096138796,6.593,151.67,151.65,0.29099]
[1746096139003,1.9668,151.7,151.65,0.29099]
[1746096139599,6.5933,151.66,151.65,0.29099]
[1746096140002,9.78641319,151.7,151.64,28.24]
[1746096140193,6.5935,151.66,151.64,28.24]
[1746096141005,6.5938,151.65,151.64,28.24]
[1746096142305,6.5935,151.66,151.64,28.24]
[1746096142505,9.78641319,151.7,151.64,28.24]
[1746096142697,9.78641319,151.7,151.64,34.8342]
[1746096142898,9.78641319,151.7,151.64,28.24]
[1746096143397,1.9668,151.7,151.64,28.24]
[1746096143901,6.5932,151.67,151.64,34.834]
[1746096145008,6.5933,151.66,151.64,28.24]
[1746096146407,6.5931,151.67,151.64,34.8342]
[1746096146909,1.9668,151.7,151.64,28.24]
[1746096147101,6.5927,151.68,151.65,6.5938]
[1746096147508,6.5927,151.68,151.64,28.24]
[1746096147809,6.5929,151.67,151.64,28.24]
[1746096148309,6.5927,151.68,151.64,28.24]
[1746096148809,6.5927,151.68,151.64,34.834]
[1746096149407,6.5929,151.67,151.64,34.834]
[1746096149813,4.0413,151.71,151.65,6.5937]
[1746096150409,6.5927,151.68,151.65,6.5937]
[1746096150612,4.0413,151.71,151.64,34.834]
[1746096151207,6.593,151.67,151.64,34.834]
[1746096153208,6.5934,151.66,151.64,28.24]
[1746096153813,7.81961319,151.66,151.58,0.31395]
[1746096154412,6.5964,151.59,151.58,0.31395]
[1746096154613,6.5964,151.59,151.58,28.37395]
[1746096154910,6.5961,151.6,151.58,28.37395]
[1746096155412,3.9479,151.65,151.58,28.37395]
[1746096156013,6.593,151.67,151.58,36.19356319]
[1746096156511,7.81961319,151.73,151.58,37.38166319]
[1746096156715,6.5927,151.68,151.58,37.38166319]
[1746096156910,7.81961319,151.73,151.63,6.5942]
[1746096157111,7.81961319,151.73,151.64,28.08]
[1746096157411,6.5925,151.68,151.64,28.08]
[1746096157606,5.9202,151.74,151.64,28.08]
[1746096158013,6.5904,151.73,151.64,28.08]
[1746096158310,5.9202,151.74,151.64,28.08]
[1746096158610,19.7545,151.86,151.64,28.08]
[1746096158611,3.977,151.79,151.69,7.81961319]
[1746096158800,1.9431,151.79,151.7,28.08]
[1746096159111,8.5668,151.82,151.72,7.81961319]
[1746096159510,1.9803,151.82,151.76,6.5887]
[1746096159814,1.9803,151.82,151.69,7.81961319]
[1746096160009,6.588,151.79,151.73,6.5901]
[1746096160313,1.9803,151.82,151.74,28.06]
[1746096160608,6.5884,151.78,151.73,6.5901]
[1746096160807,6.5884,151.78,151.74,28.06]
[1746096161208,6.5885,151.77,151.74,28.06]
[1746096161610,1.9803,151.82,151.74,28.06]
[1746096161812,6.5886,151.77,151.74,28.06]
[1746096163013,6.5886,151.77,151.73,6.59]
[1746096163212,6.5886,151.77,151.74,28.06]
[1746096163914,6.5886,151.77,151.73,6.59]
[1746096164101,6.5886,151.77,151.74,28.06]
[1746096164307,6.5886,151.77,151.73,6.59]
[1746096164503,6.589,151.76,151.74,28.06]
[1746096165414,6.5887,151.77,151.74,28.06]
[1746096166113,1.9803,151.82,151.74,28.06]
[1746096167218,6.5874,151.8,151.76,6.5889]
[1746096169618,6.5878,151.79,151.75,6.5893]
[1746096170420,6.5874,151.8,151.76,6.5889]
[1746096170818,1.9803,151.82,151.74,28.06]
[1746096171019,6.5877,151.79,151.75,6.5891]
[1746096172618,6.5877,151.79,151.74,28.06]
[1746096172619,1.9803,151.82,151.74,28.06]
[1746096173119,6.5884,151.78,151.74,34.6496]
[1746096173418,6.5884,151.78,151.74,28.06]
[1746096173914,6.5878,151.79,151.75,6.5893]
[1746096174111,6.5878,151.79,151.74,28.06]
[1746096174918,6.5881,151.78,151.75,6.5892]
[1746096175520,6.5879,151.79,151.75,6.5892]
[1746096176219,6.5881,151.78,151.75,6.5892]
[1746096176518,1.9803,151.82,151.74,28.06]
[1746096176718,6.5886,151.77,151.74,28.06]
[1746096177621,6.589,151.76,151.74,28.06]
[1746096179021,6.5888,151.77,151.74,28.06]
[1746096179522,6.5883,151.78,151.74,34.6498]
[1746096179821,1.9803,151.82,151.74,28.06]
[1746096180022,6.5876,151.8,151.75,6.5891]
[1746096180223,1.9803,151.82,151.75,6.5891]
[1746096180615,6.5877,151.79,151.76,6.5889]
[1746096181114,6.5874,151.8,151.76,6.5889]
[1746096181319,1.9803,151.82,151.74,28.06]
[1746096181721,6.587,151.81,151.74,28.06]
[1746096181910,6.587,151.81,151.77,6.5883]
[1746096182115,6.587,151.81,151.78,27.88]
[1746096182321,8.5669,151.82,151.78,27.88]
[1746096182522,1.9803,151.82,151.78,34.4678]
[1746096182920,6.587,151.81,151.78,34.4678]
[1746096183224,1.9803,151.82,151.78,34.4678]
[1746096183723,6.5871,151.81,151.78,34.4678]